[Event "Titled Tuesday Blitz January 31 Late 2023"]
[White "Can, Melih Kaan"]
[Black "Fiorito, Joaquin"]
[WhiteFideId "6317383"]
[BlackFideId "180173"]
[WhiteElo "2069"]
[BlackElo "2405"]
[Result "0-1"]
[Round "07"]
[TimeControl "180+2"]
[Date "2023.01.31"]
[WhiteClock "0:00:35"]
[BlackClock "0:01:50"]

1. d4 {[%clk 0:02:50]}  Nf6 {[%clk 0:02:59]} 2. c4 {[%clk 0:02:50]}  e6 {[%clk 0:03:00]} 3. Nc3 {[%clk 0:02:51]}  Bb4 {[%clk 0:03:00]} 4. e3 {[%clk 0:02:51]}  O-O {[%clk 0:02:59]} 5. Bd3 {[%clk 0:02:51]}  d5 {[%clk 0:02:59]} 6. Nf3 {[%clk 0:02:51]}  dxc4 {[%clk 0:02:56]} 7. Bxc4 {[%clk 0:02:51]}  c5 {[%clk 0:02:57]} 8. a3 {[%clk 0:02:50]}  Ba5 {[%clk 0:02:56]} 9. O-O {[%clk 0:02:49]}  Nc6 {[%clk 0:02:56]} 10. dxc5 {[%clk 0:02:47]}  Bxc3 {[%clk 0:02:56]} 11. Qxd8 {[%clk 0:02:43]}  Rxd8 {[%clk 0:02:56]} 12. bxc3 {[%clk 0:02:44]}  e5 {[%clk 0:02:56]} 13. a4 {[%clk 0:02:35]}  Bg4 {[%clk 0:02:49]} 14. a5 {[%clk 0:02:31]}  a6 {[%clk 0:02:47]} 15. h3 {[%clk 0:02:13]}  Bh5 {[%clk 0:02:39]} 16. Ra4 {[%clk 0:01:45]}  Bg6 {[%clk 0:02:27]} 17. Bb2 {[%clk 0:01:28]}  Bc2 {[%clk 0:02:26]} 18. Raa1 {[%clk 0:01:22]}  Ne4 {[%clk 0:02:22]} 19. Rfc1 {[%clk 0:01:18]}  Bd3 {[%clk 0:02:21]} 20. Bxd3 {[%clk 0:01:12]}  Rxd3 {[%clk 0:02:22]} 21. c4 {[%clk 0:01:13]}  Nxc5 {[%clk 0:02:15]} 22. Nxe5 {[%clk 0:01:09]}  Nxe5 {[%clk 0:02:12]} 23. Bxe5 {[%clk 0:01:10]}  Nb3 {[%clk 0:02:12]} 24. Rd1 {[%clk 0:01:11]}  Rad8 {[%clk 0:02:08]} 25. Rxd3 {[%clk 0:01:10]}  Rxd3 {[%clk 0:02:08]} 26. Rb1 {[%clk 0:01:07]}  Nxa5 {[%clk 0:02:06]} 27. Bc7 {[%clk 0:01:07]}  Nb3 {[%clk 0:01:59]} 28. Kf1 {[%clk 0:00:59]}  f6 {[%clk 0:01:59]} 29. Ke2 {[%clk 0:00:58]}  Rc3 {[%clk 0:02:00]} 30. Rb2 {[%clk 0:00:54]}  Rxc4 {[%clk 0:01:57]} 31. Bb6 {[%clk 0:00:46]}  Rb4 {[%clk 0:01:54]} 32. Bc5 {[%clk 0:00:35]}  Nc1+ {[%clk 0:01:50]} 0-1


[Site "https://www.chess.com"]

[Event "Titled Tuesday Blitz January 31 Late 2023"]
[White "Andreassen, Lars"]
[Black "Bambino Filho, Antonio Carlos"]
[WhiteFideId "1504878"]
[BlackFideId "2113163"]
[WhiteElo "2168"]
[BlackElo "2144"]
[Result "1/2-1/2"]
[Round "07"]
[TimeControl "180+2"]
[Date "2023.01.31"]
[WhiteClock "0:00:25"]
[BlackClock "0:01:06"]

1. d4 {[%clk 0:01:48]}  c5 {[%clk 0:02:55]} 2. Nf3 {[%clk 0:01:49]}  cxd4 {[%clk 0:02:55]} 3. c3 {[%clk 0:01:49]}  dxc3 {[%clk 0:02:54]} 4. Nxc3 {[%clk 0:01:50]}  Nf6 {[%clk 0:02:55]} 5. e4 {[%clk 0:01:51]}  d6 {[%clk 0:02:53]} 6. e5 {[%clk 0:01:51]}  dxe5 {[%clk 0:02:48]} 7. Qxd8+ {[%clk 0:01:51]}  Kxd8 {[%clk 0:02:49]} 8. Nxe5 {[%clk 0:01:51]}  Ke8 {[%clk 0:02:49]} 9. Bc4 {[%clk 0:01:51]}  e6 {[%clk 0:02:49]} 10. Bg5 {[%clk 0:01:47]}  Nc6 {[%clk 0:02:42]} 11. Nxc6 {[%clk 0:01:45]}  bxc6 {[%clk 0:02:43]} 12. O-O {[%clk 0:01:44]}  h6 {[%clk 0:02:39]} 13. Bxf6 {[%clk 0:01:43]}  gxf6 {[%clk 0:02:40]} 14. Ne4 {[%clk 0:01:39]}  Be7 {[%clk 0:02:39]} 15. Rfd1 {[%clk 0:01:39]}  Rb8 {[%clk 0:02:38]} 16. b3 {[%clk 0:01:39]}  Bd7 {[%clk 0:02:32]} 17. Nd6+ {[%clk 0:01:36]}  Bxd6 {[%clk 0:02:32]} 18. Rxd6 {[%clk 0:01:37]}  Ke7 {[%clk 0:02:33]} 19. Rad1 {[%clk 0:01:37]}  Rhd8 {[%clk 0:02:33]} 20. f4 {[%clk 0:01:22]}  Be8 {[%clk 0:02:33]} 21. R6d3 {[%clk 0:01:13]}  Rxd3 {[%clk 0:02:32]} 22. Rxd3 {[%clk 0:01:14]}  Rd8 {[%clk 0:02:33]} 23. Rh3 {[%clk 0:01:14]}  Rd4 {[%clk 0:02:32]} 24. f5 {[%clk 0:01:06]}  Rd1+ {[%clk 0:02:14]} 25. Kf2 {[%clk 0:01:05]}  Rd2+ {[%clk 0:02:14]} 26. Kf3 {[%clk 0:01:03]}  Rxa2 {[%clk 0:02:15]} 27. Rxh6 {[%clk 0:01:03]}  e5 {[%clk 0:02:12]} 28. h4 {[%clk 0:01:02]}  c5 {[%clk 0:01:57]} 29. Rh7 {[%clk 0:00:47]}  Bc6+ {[%clk 0:01:55]} 30. Ke3 {[%clk 0:00:48]}  Be8 {[%clk 0:01:40]} 31. g4 {[%clk 0:00:40]}  Rg2 {[%clk 0:01:36]} 32. Kf3 {[%clk 0:00:37]}  Bc6+ {[%clk 0:01:36]} 33. Ke3 {[%clk 0:00:38]}  Be8 {[%clk 0:01:29]} 34. Kf3 {[%clk 0:00:37]}  Rg1 {[%clk 0:01:18]} 35. h5 {[%clk 0:00:35]}  Kf8 {[%clk 0:01:06]} 36. Rh8+ {[%clk 0:00:34]}  Ke7 {[%clk 0:01:06]} 37. Rh7 {[%clk 0:00:32]}  Kf8 {[%clk 0:01:06]} 38. Rh8+ {[%clk 0:00:32]}  Ke7 {[%clk 0:01:06]} 39. Rh7 {[%clk 0:00:25]} 1/2-1/2


[Site "https://www.chess.com"]

[Event "Titled Tuesday Blitz January 31 Late 2023"]
[White "Kouskoutis, Georgios-Alexandros"]
[Black "Paveto, Kevin"]
[WhiteFideId "4234049"]
[BlackFideId "173444"]
[WhiteElo "2295"]
[BlackElo "2427"]
[Result "1/2-1/2"]
[Round "07"]
[TimeControl "180+2"]
[Date "2023.01.31"]
[WhiteClock "0:00:05"]
[BlackClock "0:01:28"]

1. c4 {[%clk 0:03:00]}  Nf6 {[%clk 0:02:59]} 2. g3 {[%clk 0:02:47]}  c6 {[%clk 0:02:54]} 3. Bg2 {[%clk 0:02:46]}  d5 {[%clk 0:02:54]} 4. Nf3 {[%clk 0:02:47]}  dxc4 {[%clk 0:02:54]} 5. a4 {[%clk 0:02:46]}  a5 {[%clk 0:02:54]} 6. Na3 {[%clk 0:02:41]}  Bf5 {[%clk 0:02:54]} 7. Nxc4 {[%clk 0:02:40]}  e6 {[%clk 0:02:54]} 8. O-O {[%clk 0:02:38]}  Bb4 {[%clk 0:02:54]} 9. d3 {[%clk 0:02:37]}  O-O {[%clk 0:02:54]} 10. b3 {[%clk 0:02:20]}  Nbd7 {[%clk 0:02:53]} 11. Bb2 {[%clk 0:02:20]}  h6 {[%clk 0:02:54]} 12. Qc2 {[%clk 0:02:18]}  Re8 {[%clk 0:02:54]} 13. Rac1 {[%clk 0:02:12]}  Qc7 {[%clk 0:02:53]} 14. Nfe5 {[%clk 0:02:07]}  Nxe5 {[%clk 0:02:53]} 15. Bxe5 {[%clk 0:02:07]}  Qe7 {[%clk 0:02:51]} 16. Qb2 {[%clk 0:02:05]}  Rad8 {[%clk 0:02:46]} 17. Qa1 {[%clk 0:01:58]}  Bh7 {[%clk 0:02:39]} 18. Rfd1 {[%clk 0:01:54]}  Rf8 {[%clk 0:02:33]} 19. h3 {[%clk 0:01:19]}  Ne8 {[%clk 0:02:31]} 20. Bc3 {[%clk 0:01:04]}  f6 {[%clk 0:02:27]} 21. Nxa5 {[%clk 0:01:02]}  Bxa5 {[%clk 0:02:24]} 22. Bxa5 {[%clk 0:01:02]}  Ra8 {[%clk 0:02:25]} 23. Bc3 {[%clk 0:01:00]}  Nc7 {[%clk 0:02:25]} 24. Qb2 {[%clk 0:00:52]}  Rfd8 {[%clk 0:02:25]} 25. e4 {[%clk 0:00:48]}  e5 {[%clk 0:02:23]} 26. d4 {[%clk 0:00:37]}  exd4 {[%clk 0:02:22]} 27. Rxd4 {[%clk 0:00:37]}  Ne6 {[%clk 0:02:21]} 28. Rxd8+ {[%clk 0:00:35]}  Rxd8 {[%clk 0:02:22]} 29. Qe2 {[%clk 0:00:30]}  Kh8 {[%clk 0:02:18]} 30. Rd1 {[%clk 0:00:21]}  Re8 {[%clk 0:02:16]} 31. Qc4 {[%clk 0:00:18]}  Ng5 {[%clk 0:02:12]} 32. Re1 {[%clk 0:00:07]}  Bg8 {[%clk 0:02:11]} 33. Qb4 {[%clk 0:00:04]}  Qd7 {[%clk 0:02:11]} 34. h4 {[%clk 0:00:03]}  Ne6 {[%clk 0:02:05]} 35. e5 {[%clk 0:00:02]}  f5 {[%clk 0:02:03]} 36. Qd6 {[%clk 0:00:03]}  Qc8 {[%clk 0:02:01]} 37. b4 {[%clk 0:00:02]}  f4 {[%clk 0:01:57]} 38. b5 {[%clk 0:00:01]}  cxb5 {[%clk 0:01:55]} 39. Bb4 {[%clk 0:00:01]}  fxg3 {[%clk 0:01:54]} 40. axb5 {[%clk 0:00:01]}  gxf2+ {[%clk 0:01:54]} 41. Kxf2 {[%clk 0:00:02]}  Qc2+ {[%clk 0:01:52]} 42. Kg1 {[%clk 0:00:02]}  Nf4 {[%clk 0:01:50]} 43. Qd2 {[%clk 0:00:03]}  Qc4 {[%clk 0:01:45]} 44. Re4 {[%clk 0:00:03]}  Qxb5 {[%clk 0:01:39]} 45. Qxf4 {[%clk 0:00:03]}  Bd5 {[%clk 0:01:36]} 46. Rd4 {[%clk 0:00:03]}  Bxg2 {[%clk 0:01:36]} 47. Kxg2 {[%clk 0:00:04]}  Qe2+ {[%clk 0:01:36]} 48. Qf2 {[%clk 0:00:04]}  Qxe5 {[%clk 0:01:36]} 49. Rf4 {[%clk 0:00:04]}  Qd5+ {[%clk 0:01:36]} 50. Rf3 {[%clk 0:00:04]}  Re4 {[%clk 0:01:34]} 51. Bc3 {[%clk 0:00:03]}  Rg4+ {[%clk 0:01:34]} 52. Kh2 {[%clk 0:00:03]}  Qd6+ {[%clk 0:01:33]} 53. Rg3 {[%clk 0:00:03]}  Rxh4+ {[%clk 0:01:30]} 54. Kg2 {[%clk 0:00:03]}  Qd5+ {[%clk 0:01:31]} 55. Qf3 {[%clk 0:00:03]}  Qxf3+ {[%clk 0:01:29]} 56. Kxf3 {[%clk 0:00:04]}  Kg8 {[%clk 0:01:27]} 57. Rxg7+ {[%clk 0:00:04]}  Kf8 {[%clk 0:01:28]} 58. Rxb7 {[%clk 0:00:05]}  Rh3+ {[%clk 0:01:28]} 59. Kg4 {[%clk 0:00:05]}  Rxc3 {[%clk 0:01:29]} 60. Kh5 {[%clk 0:00:05]}  Rc6 {[%clk 0:01:29]} 61. Rh7 {[%clk 0:00:05]}  Kg8 {[%clk 0:01:27]} 62. Rxh6 {[%clk 0:00:05]}  Rc5+ {[%clk 0:01:28]} 63. Kg4 {[%clk 0:00:05]}  Kg7 {[%clk 0:01:28]} 64. Rd6 {[%clk 0:00:05]} 1/2-1/2


[Site "https://www.chess.com"]

[Event "Titled Tuesday Blitz January 31 Late 2023"]
[White "Jeet, Jain"]
[Black "Dourerassou, Jonathan"]
[WhiteFideId "5073022"]
[BlackFideId "628050"]
[WhiteElo "2199"]
[BlackElo "2414"]
[Result "1-0"]
[Round "07"]
[TimeControl "180+2"]
[Date "2023.01.31"]
[WhiteClock "0:00:22"]
[BlackClock "0:00:06"]

1. Nf3 {[%clk 0:03:00]}  Nf6 {[%clk 0:02:59]} 2. g3 {[%clk 0:02:56]}  g6 {[%clk 0:02:59]} 3. Bg2 {[%clk 0:02:57]}  Bg7 {[%clk 0:03:00]} 4. O-O {[%clk 0:02:58]}  O-O {[%clk 0:03:01]} 5. d4 {[%clk 0:02:59]}  d6 {[%clk 0:03:01]} 6. Nbd2 {[%clk 0:02:52]}  Nbd7 {[%clk 0:03:02]} 7. e4 {[%clk 0:02:48]}  a6 {[%clk 0:03:03]} 8. a4 {[%clk 0:02:47]}  c5 {[%clk 0:03:03]} 9. c3 {[%clk 0:02:46]}  cxd4 {[%clk 0:03:02]} 10. cxd4 {[%clk 0:02:45]}  Rb8 {[%clk 0:03:01]} 11. a5 {[%clk 0:02:44]}  b5 {[%clk 0:03:00]} 12. axb6 {[%clk 0:02:43]}  Nxb6 {[%clk 0:03:00]} 13. Re1 {[%clk 0:02:41]}  Bb7 {[%clk 0:03:00]} 14. e5 {[%clk 0:02:29]}  dxe5 {[%clk 0:02:59]} 15. dxe5 {[%clk 0:02:30]}  Nfd5 {[%clk 0:02:57]} 16. e6 {[%clk 0:02:30]}  f6 {[%clk 0:02:56]} 17. Ne4 {[%clk 0:02:28]}  Nb4 {[%clk 0:02:54]} 18. Qb3 {[%clk 0:02:26]}  N6d5 {[%clk 0:02:28]} 19. Nc5 {[%clk 0:02:21]}  Bc8 {[%clk 0:02:23]} 20. Rd1 {[%clk 0:02:08]}  Rb5 {[%clk 0:02:21]} 21. Be3 {[%clk 0:02:00]}  Qd6 {[%clk 0:02:16]} 22. Ne1 {[%clk 0:01:50]}  Rd8 {[%clk 0:01:37]} 23. Rac1 {[%clk 0:01:32]}  Bxe6 {[%clk 0:01:26]} 24. Nxe6 {[%clk 0:01:30]}  Qxe6 {[%clk 0:01:27]} 25. Bf1 {[%clk 0:01:13]}  Kf7 {[%clk 0:01:05]} 26. Bxb5 {[%clk 0:01:08]}  axb5 {[%clk 0:01:06]} 27. Nd3 {[%clk 0:01:04]}  Nxe3 {[%clk 0:01:02]} 28. Qxe6+ {[%clk 0:00:54]}  Kxe6 {[%clk 0:01:03]} 29. Nc5+ {[%clk 0:00:47]}  Kf7 {[%clk 0:00:59]} 30. Rxd8 {[%clk 0:00:47]}  Nc4 {[%clk 0:00:57]} 31. b3 {[%clk 0:00:45]}  Nd6 {[%clk 0:00:56]} 32. Rb8 {[%clk 0:00:42]}  Bh6 {[%clk 0:00:52]} 33. Rd1 {[%clk 0:00:38]}  Nc6 {[%clk 0:00:51]} 34. Rb6 {[%clk 0:00:37]}  Ne5 {[%clk 0:00:47]} 35. Nb7 {[%clk 0:00:36]}  Ne4 {[%clk 0:00:40]} 36. Kg2 {[%clk 0:00:32]}  Nc3 {[%clk 0:00:39]} 37. Rd8 {[%clk 0:00:30]}  f5 {[%clk 0:00:12]} 38. h3 {[%clk 0:00:27]}  Bg7 {[%clk 0:00:12]} 39. f4 {[%clk 0:00:26]}  Nc4 {[%clk 0:00:06]} 40. bxc4 {[%clk 0:00:25]}  bxc4 {[%clk 0:00:07]} 41. Rc8 {[%clk 0:00:25]}  Nd5 {[%clk 0:00:07]} 42. Nd8+ {[%clk 0:00:25]}  Ke8 {[%clk 0:00:06]} 43. Ne6+ {[%clk 0:00:22]}  Kd7 {[%clk 0:00:06]} 44. Rd8# {[%clk 0:00:22]} 1-0


[Site "https://www.chess.com"]

[Event "Titled Tuesday Blitz January 31 Late 2023"]
[White "Martinez Ramirez, Lennis"]
[Black "Carbone, Diego"]
[WhiteFideId "3509079"]
[BlackFideId "3002179"]
[WhiteElo "2426"]
[BlackElo "2336"]
[Result "0-1"]
[Round "07"]
[TimeControl "180+2"]
[Date "2023.01.31"]
[WhiteClock "0:00:14"]
[BlackClock "0:00:13"]

1. d4 {[%clk 0:03:00]}  Nf6 {[%clk 0:02:57]} 2. c4 {[%clk 0:03:01]}  g6 {[%clk 0:02:57]} 3. Nf3 {[%clk 0:03:02]}  Bg7 {[%clk 0:02:56]} 4. Nc3 {[%clk 0:03:02]}  d5 {[%clk 0:02:56]} 5. cxd5 {[%clk 0:02:59]}  Nxd5 {[%clk 0:02:57]} 6. Qb3 {[%clk 0:03:00]}  Nb6 {[%clk 0:02:18]} 7. e4 {[%clk 0:02:59]}  O-O {[%clk 0:02:16]} 8. Be3 {[%clk 0:02:58]}  Bg4 {[%clk 0:01:42]} 9. Rd1 {[%clk 0:02:53]}  Nc6 {[%clk 0:01:41]} 10. d5 {[%clk 0:02:51]}  Ne5 {[%clk 0:01:41]} 11. Be2 {[%clk 0:02:49]}  Nxf3+ {[%clk 0:01:37]} 12. gxf3 {[%clk 0:02:47]}  Bh5 {[%clk 0:01:37]} 13. a4 {[%clk 0:02:43]}  Qc8 {[%clk 0:01:34]} 14. a5 {[%clk 0:02:42]}  Nd7 {[%clk 0:01:31]} 15. f4 {[%clk 0:02:43]}  Bxe2 {[%clk 0:01:28]} 16. Nxe2 {[%clk 0:02:43]}  c5 {[%clk 0:01:28]} 17. e5 {[%clk 0:02:40]}  b6 {[%clk 0:01:25]} 18. axb6 {[%clk 0:02:34]}  axb6 {[%clk 0:01:26]} 19. h4 {[%clk 0:02:31]}  Qa6 {[%clk 0:01:17]} 20. Nc3 {[%clk 0:02:30]}  h5 {[%clk 0:01:13]} 21. Rg1 {[%clk 0:02:23]}  Qa5 {[%clk 0:01:13]} 22. Kf1 {[%clk 0:02:04]}  Qb4 {[%clk 0:01:11]} 23. Qc2 {[%clk 0:02:01]}  Ra6 {[%clk 0:01:07]} 24. Rg3 {[%clk 0:01:59]}  b5 {[%clk 0:01:05]} 25. e6 {[%clk 0:01:54]}  Qc4+ {[%clk 0:00:58]} 26. Kg1 {[%clk 0:01:54]}  b4 {[%clk 0:00:55]} 27. Qe4 {[%clk 0:01:36]}  Qb3 {[%clk 0:00:41]} 28. exd7 {[%clk 0:01:10]}  bxc3 {[%clk 0:00:40]} 29. Rb1 {[%clk 0:00:59]}  cxb2 {[%clk 0:00:39]} 30. Qxe7 {[%clk 0:00:52]}  Ra1 {[%clk 0:00:28]} 31. d8=Q {[%clk 0:00:24]}  Rxb1+ {[%clk 0:00:27]} 32. Kh2 {[%clk 0:00:23]}  Rh1+ {[%clk 0:00:25]} 33. Kxh1 {[%clk 0:00:23]}  b1=Q+ {[%clk 0:00:25]} 34. Kh2 {[%clk 0:00:23]}  Rxd8 {[%clk 0:00:20]} 35. Qxd8+ {[%clk 0:00:24]}  Kh7 {[%clk 0:00:21]} 36. Qd7 {[%clk 0:00:20]}  Q3d1 {[%clk 0:00:20]} 37. Rg2 {[%clk 0:00:19]}  Qh1+ {[%clk 0:00:14]} 38. Kg3 {[%clk 0:00:19]}  Qe4 {[%clk 0:00:15]} 39. d6 {[%clk 0:00:14]}  Qexg2# {[%clk 0:00:13]} 0-1


[Site "https://www.chess.com"]

[Event "Titled Tuesday Blitz January 31 Late 2023"]
[White "Novikov, Evgenij"]
[Black "Oro, Faustino"]
[WhiteFideId "4125380"]
[BlackFideId "20000197"]
[WhiteElo "2276"]
[BlackElo "2269"]
[Result "0-1"]
[Round "07"]
[TimeControl "180+2"]
[Date "2023.01.31"]
[WhiteClock "0:00:01"]
[BlackClock "0:02:02"]

1. e4 {[%clk 0:02:59]}  e5 {[%clk 0:02:59]} 2. Nf3 {[%clk 0:02:58]}  Nc6 {[%clk 0:02:59]} 3. d4 {[%clk 0:02:55]}  exd4 {[%clk 0:02:59]} 4. Nxd4 {[%clk 0:02:56]}  Bc5 {[%clk 0:02:58]} 5. Nxc6 {[%clk 0:02:54]}  Qf6 {[%clk 0:02:58]} 6. Qf3 {[%clk 0:02:53]}  Qxf3 {[%clk 0:02:56]} 7. gxf3 {[%clk 0:02:54]}  dxc6 {[%clk 0:02:55]} 8. Rg1 {[%clk 0:02:47]}  g6 {[%clk 0:02:53]} 9. Bd2 {[%clk 0:02:30]}  Ne7 {[%clk 0:02:43]} 10. Bc3 {[%clk 0:02:28]}  Rg8 {[%clk 0:02:43]} 11. Nd2 {[%clk 0:02:25]}  Be6 {[%clk 0:02:43]} 12. Bc4 {[%clk 0:02:21]}  Bxc4 {[%clk 0:02:35]} 13. Nxc4 {[%clk 0:02:22]}  O-O-O {[%clk 0:02:35]} 14. Ke2 {[%clk 0:01:57]}  f5 {[%clk 0:02:32]} 15. Rad1 {[%clk 0:01:51]}  Rde8 {[%clk 0:02:31]} 16. b4 {[%clk 0:01:44]}  Nd5 {[%clk 0:02:20]} 17. Rxd5 {[%clk 0:00:18]}  cxd5 {[%clk 0:02:20]} 18. bxc5 {[%clk 0:00:14]}  dxc4 {[%clk 0:02:20]} 19. e5 {[%clk 0:00:12]}  Rd8 {[%clk 0:02:15]} 20. Ke3 {[%clk 0:00:10]}  g5 {[%clk 0:02:05]} 21. Bd4 {[%clk 0:00:09]}  b6 {[%clk 0:02:05]} 22. cxb6 {[%clk 0:00:05]}  axb6 {[%clk 0:02:06]} 23. c3 {[%clk 0:00:05]}  Kb7 {[%clk 0:02:05]} 24. Rb1 {[%clk 0:00:02]}  Kc6 {[%clk 0:02:05]} 25. Rb4 {[%clk 0:00:02]}  Kd5 {[%clk 0:02:04]} 26. Rb5+ {[%clk 0:00:02]}  c5 {[%clk 0:02:02]} 27. Ke2 {[%clk 0:00:01]}  Kc6 {[%clk 0:02:02]} 0-1


[Site "https://www.chess.com"]

[Event "Titled Tuesday Blitz January 31 Late 2023"]
[White "Matko, Ognjen"]
[Black "Chor, Kevin"]
[WhiteFideId "14509717"]
[BlackFideId "2090740"]
[WhiteElo "2295"]
[BlackElo "1944"]
[Result "0-1"]
[Round "07"]
[TimeControl "180+2"]
[Date "2023.01.31"]
[WhiteClock "0:00:02"]
[BlackClock "0:00:03"]

1. Nf3 {[%clk 0:03:00]}  c5 {[%clk 0:02:59]} 2. c4 {[%clk 0:02:57]}  g6 {[%clk 0:02:59]} 3. Nc3 {[%clk 0:02:56]}  Bg7 {[%clk 0:03:00]} 4. g3 {[%clk 0:02:57]}  Nc6 {[%clk 0:03:00]} 5. Bg2 {[%clk 0:02:57]}  Nf6 {[%clk 0:03:01]} 6. O-O {[%clk 0:02:57]}  O-O {[%clk 0:03:02]} 7. d4 {[%clk 0:02:54]}  d6 {[%clk 0:03:02]} 8. h3 {[%clk 0:02:52]}  Bd7 {[%clk 0:02:56]} 9. b3 {[%clk 0:02:51]}  a6 {[%clk 0:02:43]} 10. Bb2 {[%clk 0:02:48]}  Rb8 {[%clk 0:02:43]} 11. dxc5 {[%clk 0:02:45]}  dxc5 {[%clk 0:02:44]} 12. Na4 {[%clk 0:02:43]}  b6 {[%clk 0:02:34]} 13. Ne5 {[%clk 0:02:40]}  Qc7 {[%clk 0:02:24]} 14. Nxd7 {[%clk 0:02:29]}  Nxd7 {[%clk 0:02:25]} 15. Bxg7 {[%clk 0:02:17]}  Kxg7 {[%clk 0:02:26]} 16. Qd2 {[%clk 0:02:03]}  b5 {[%clk 0:02:15]} 17. Nb2 {[%clk 0:01:48]}  Nf6 {[%clk 0:02:09]} 18. Rfd1 {[%clk 0:01:39]}  Rfd8 {[%clk 0:02:01]} 19. Qc3 {[%clk 0:01:23]}  Nd4 {[%clk 0:01:59]} 20. Kf1 {[%clk 0:01:18]}  e5 {[%clk 0:01:21]} 21. e3 {[%clk 0:01:17]}  Nf5 {[%clk 0:01:22]} 22. Nd3 {[%clk 0:01:00]}  bxc4 {[%clk 0:00:56]} 23. Nxe5 {[%clk 0:00:49]}  cxb3 {[%clk 0:00:56]} 24. axb3 {[%clk 0:00:50]}  Rxd1+ {[%clk 0:00:54]} 25. Rxd1 {[%clk 0:00:49]}  Rd8 {[%clk 0:00:50]} 26. Ra1 {[%clk 0:00:33]}  Kg8 {[%clk 0:00:40]} 27. Rxa6 {[%clk 0:00:24]}  Nd6 {[%clk 0:00:31]} 28. Nc6 {[%clk 0:00:20]}  Nde4 {[%clk 0:00:28]} 29. Qa1 {[%clk 0:00:14]}  Rd6 {[%clk 0:00:08]} 30. Bxe4 {[%clk 0:00:11]}  Kg7 {[%clk 0:00:07]} 31. Bg2 {[%clk 0:00:05]}  Qb7 {[%clk 0:00:07]} 32. Kg1 {[%clk 0:00:03]}  Qxb3 {[%clk 0:00:07]} 33. Kh2 {[%clk 0:00:02]}  Rd1 {[%clk 0:00:06]} 34. Qe5 {[%clk 0:00:01]}  Rb1 {[%clk 0:00:03]} 35. h4 {[%clk 0:00:02]}  Qd1 {[%clk 0:00:03]} 0-1


[Site "https://www.chess.com"]

[Event "Titled Tuesday Blitz January 31 Late 2023"]
[White "Koellner, Ruben Gideon"]
[Black "Papayan, Oleg"]
[WhiteFideId "12993093"]
[BlackFideId "4193911"]
[WhiteElo "2426"]
[BlackElo "2253"]
[Result "1-0"]
[Round "07"]
[TimeControl "180+2"]
[Date "2023.01.31"]
[WhiteClock "0:01:03"]
[BlackClock "0:00:08"]

1. d4 {[%clk 0:03:00]}  Nf6 {[%clk 0:02:59]} 2. Nf3 {[%clk 0:02:59]}  d5 {[%clk 0:02:59]} 3. e3 {[%clk 0:02:58]}  c5 {[%clk 0:02:57]} 4. Nbd2 {[%clk 0:02:58]}  Nc6 {[%clk 0:02:50]} 5. c3 {[%clk 0:02:57]}  h6 {[%clk 0:02:38]} 6. dxc5 {[%clk 0:02:45]}  e5 {[%clk 0:02:39]} 7. b4 {[%clk 0:02:45]}  e4 {[%clk 0:02:35]} 8. Nd4 {[%clk 0:02:43]}  Ne5 {[%clk 0:02:36]} 9. Bb2 {[%clk 0:02:40]}  Be7 {[%clk 0:02:31]} 10. c4 {[%clk 0:02:39]}  Bg4 {[%clk 0:02:19]} 11. Qa4+ {[%clk 0:02:37]}  Bd7 {[%clk 0:02:17]} 12. Qb3 {[%clk 0:02:37]}  dxc4 {[%clk 0:01:56]} 13. Nxc4 {[%clk 0:02:37]}  Nd3+ {[%clk 0:01:47]} 14. Bxd3 {[%clk 0:02:37]}  exd3 {[%clk 0:01:48]} 15. Qxd3 {[%clk 0:02:34]}  O-O {[%clk 0:01:48]} 16. O-O {[%clk 0:02:33]}  Nd5 {[%clk 0:01:44]} 17. a3 {[%clk 0:02:31]}  Bf6 {[%clk 0:01:44]} 18. Rfd1 {[%clk 0:02:29]}  Ba4 {[%clk 0:01:42]} 19. Rd2 {[%clk 0:02:28]}  Qc7 {[%clk 0:01:06]} 20. Nd6 {[%clk 0:02:25]}  a6 {[%clk 0:00:44]} 21. N4f5 {[%clk 0:02:16]}  Bc6 {[%clk 0:00:41]} 22. Bxf6 {[%clk 0:02:09]}  Nxf6 {[%clk 0:00:41]} 23. Qd4 {[%clk 0:02:08]}  Qd8 {[%clk 0:00:12]} 24. Rad1 {[%clk 0:02:01]}  g6 {[%clk 0:00:09]} 25. Nxh6+ {[%clk 0:01:56]}  Kh7 {[%clk 0:00:09]} 26. Nhxf7 {[%clk 0:01:50]}  Qe7 {[%clk 0:00:10]} 27. Qh4+ {[%clk 0:01:48]}  Kg7 {[%clk 0:00:08]} 28. Qh6+ {[%clk 0:01:25]}  Kg8 {[%clk 0:00:08]} 29. Qh8# {[%clk 0:01:03]} 1-0


[Site "https://www.chess.com"]

[Event "Titled Tuesday Blitz January 31 Late 2023"]
[White "Golubka, Petro"]
[Black "Kochetov, Andrey"]
[WhiteFideId "14114224"]
[BlackFideId "24130532"]
[WhiteElo "2371"]
[BlackElo "2165"]
[Result "1-0"]
[Round "07"]
[TimeControl "180+2"]
[Date "2023.01.31"]
[WhiteClock "0:01:00"]
[BlackClock "0:01:21"]

1. e4 {[%clk 0:03:00]}  e5 {[%clk 0:02:56]} 2. Bc4 {[%clk 0:02:32]}  Nf6 {[%clk 0:02:54]} 3. d3 {[%clk 0:02:31]}  c6 {[%clk 0:02:54]} 4. Bb3 {[%clk 0:02:30]}  d5 {[%clk 0:02:53]} 5. Nf3 {[%clk 0:02:30]}  Bd6 {[%clk 0:02:53]} 6. exd5 {[%clk 0:02:29]}  cxd5 {[%clk 0:02:53]} 7. O-O {[%clk 0:02:30]}  O-O {[%clk 0:02:53]} 8. Bg5 {[%clk 0:02:29]}  d4 {[%clk 0:02:34]} 9. c3 {[%clk 0:02:23]}  dxc3 {[%clk 0:02:32]} 10. Nxc3 {[%clk 0:02:22]}  h6 {[%clk 0:02:27]} 11. Bxf6 {[%clk 0:02:19]}  Qxf6 {[%clk 0:02:27]} 12. Ne4 {[%clk 0:02:18]}  Qe7 {[%clk 0:02:25]} 13. d4 {[%clk 0:02:15]}  Bf5 {[%clk 0:02:22]} 14. Nxd6 {[%clk 0:02:13]}  Qxd6 {[%clk 0:02:12]} 15. dxe5 {[%clk 0:02:14]}  Qb6 {[%clk 0:02:11]} 16. Qd4 {[%clk 0:02:09]}  Nc6 {[%clk 0:02:06]} 17. Qxb6 {[%clk 0:02:03]}  axb6 {[%clk 0:02:07]} 18. Rfe1 {[%clk 0:02:03]}  Rfe8 {[%clk 0:02:02]} 19. Rac1 {[%clk 0:01:58]}  Rad8 {[%clk 0:02:00]} 20. h3 {[%clk 0:01:56]}  Be6 {[%clk 0:01:46]} 21. Rc3 {[%clk 0:01:54]}  Nb4 {[%clk 0:01:43]} 22. Bxe6 {[%clk 0:01:45]}  Rxe6 {[%clk 0:01:43]} 23. a3 {[%clk 0:01:45]}  Na6 {[%clk 0:01:36]} 24. b4 {[%clk 0:01:44]}  Nb8 {[%clk 0:01:34]} 25. Rc7 {[%clk 0:01:43]}  Rd7 {[%clk 0:01:34]} 26. Rc8+ {[%clk 0:01:42]}  Rd8 {[%clk 0:01:21]} 27. Rxd8+ {[%clk 0:01:00]} 1-0


[Site "https://www.chess.com"]